fUSD/lending_fUSD_20240216
["ID","MTS","AMOUNT","RATE_DAILY","PERIOD"]
[314215205,1708087844041,-1282.6990402,0.00044264,2]
[314215206,1708087844050,-150.0,0.00044272,2]
[314215208,1708087844060,-186.94,0.00044301,2]
[314215210,1708087844069,-150.0,0.00044305,2]
[314215212,1708087844079,-150.0,0.00044306,2]
[314215214,1708087844088,-1053.68,0.00044307,120]
[314215217,1708087844098,-151.47741082,0.00044327,23]
[314215219,1708087844108,-222.08891468,0.0004433,2]
[314215221,1708087844117,-150.0,0.00044376,2]
[314215223,1708087844126,-160.0,0.00044383,2]
[314215225,1708087844135,-1148.67,0.00044383,30]
[314215226,1708087844145,-750.96,0.00044383,30]
[314215229,1708087844155,-661.97,0.00044383,30]
[314215231,1708087844164,-800.95,0.00044383,30]
[314215233,1708087844174,-500.0,0.00044383,30]
[314215235,1708087844184,-200.0,0.00044387,38]
[314215237,1708087844195,-200.0,0.00044387,37]
[314215239,1708087844205,-1261.509077,0.000444,2]
[314215241,1708087844214,-419.59249532,0.000444,2]
[314215243,1708087844223,-150.0,0.00044412,2]
[314215245,1708087844236,-150.0,0.00044417,2]
[314215248,1708087844245,-150.0,0.00044471,2]
[314215250,1708087844255,-662.0,0.0004449,2]
[314215252,1708087844265,-359.0,0.0004449,2]
[314215254,1708087844274,-3000.0,0.00044493,23]
[314215256,1708087844283,-10000.0,0.000445,5]
[314215258,1708087844291,-661.9970716,0.000445,11]
[314215260,1708087844301,-300.0,0.000445,11]
[314215262,1708087844312,-70309.37,0.000445,2]
[314215264,1708087844321,-200.0,0.000445,20]
[314215266,1708087844330,-23436.46,0.000445,30]
[314215268,1708087844339,-23436.46,0.000445,2]
[314215270,1708087844349,-238.079729,0.000445,20]
[314215272,1708087844359,-1987.913013,0.000445,20]
[314215274,1708087844368,-545.25910541,0.000445,2]
[314215276,1708087844378,-151.0,0.0004452,4]
[314215278,1708087844387,-150.0,0.00044523,2]
[314215280,1708087844396,-150.0,0.00044544,2]
[314215282,1708087844406,-1706.60866,0.00044545,2]
[314215284,1708087844415,-150.0,0.00044545,2]
[314215286,1708087844424,-150.0,0.00044551,2]
[314215288,1708087844434,-207.0,0.00044573,10]
[314215290,1708087844443,-3895.03,0.00044577,120]
[314215292,1708087844452,-150.0,0.00044588,2]
[314215294,1708087844462,-150.01,0.00044589,2]
[314215296,1708087844471,-3316.80182207,0.00044589,2]
[314215298,1708087844481,-1009.8816,0.00044589,2]
[314215300,1708087844490,-1660.0,0.0004459,2]
[314215302,1708087844499,-205.82600955,0.0004459,7]
[314215304,1708087844509,-895.0,0.0004459,2]
[314215306,1708087844518,-500.0,0.00044597,2]
[314215308,1708087844528,-500.0,0.00044597,2]
[314215310,1708087844537,-1787.98241732,0.00044597,2]
[314215312,1708087844547,-150.0,0.00044598,60]
[314215314,1708087844556,-500.0,0.00044599,2]
[314215316,1708087844566,-500.0,0.00044599,2]
[314215318,1708087844575,-500.0,0.00044599,2]
[314215320,1708087844585,-500.0,0.00044599,2]
[314215322,1708087844594,-170121.18160852,0.00044599,2]
[314215324,1708087844603,-150.0,0.00044599,4]
[314215326,1708087844613,-150.0,0.00044599,4]
[314215328,1708087844622,-235669.17428496,0.000446,45]
[314215330,1708087844631,-476029.84556127,0.000446,2]
[314215332,1708087844641,-282667.21567051,0.000446,2]
[314215334,1708087844650,-151.0,0.000446,7]
[314215336,1708087844659,-151.0,0.000446,7]
[314215338,1708087844669,-699.8626839,0.000446,2]
[314215340,1708087844678,-151.0,0.000446,14]
[314215342,1708087844688,-151.0,0.000446,14]
[314215344,1708087844697,-151.0,0.000446,14]
[314215346,1708087844707,-151.776715,0.000446,14]
[314215348,1708087844717,-174.222451,0.000446,14]
[314215350,1708087844728,-1589.7845163,0.00044605,2]
[314215352,1708087844738,-2021.804189,0.00044635,30]
[314215354,1708087844747,-3250.099993,0.00044635,30]
[314215356,1708087844757,-876.447533,0.00044635,30]
[314215358,1708087844766,-3944.013901,0.00044635,30]
[314215360,1708087844775,-1647.650272,0.00044635,30]
[314215362,1708087844785,-1235.737704,0.00044635,30]
[314215364,1708087844795,-179.6102037,0.00044646,30]
[314215366,1708087844804,-704.46303777,0.00044657,30]
[314215368,1708087844813,-1148.67,0.00044657,30]
[314215370,1708087844824,-750.96,0.00044657,30]
[314215372,1708087844833,-661.97,0.00044657,30]
[314215374,1708087844843,-800.95,0.00044657,30]
[314215376,1708087844853,-500.0,0.00044657,30]
[314215379,1708087844863,-927.53738346,0.00044666,7]
[314215380,1708087844872,-734.94411037,0.00044673,30]
[314215381,1708087844882,-151.68933276,0.00044678,30]
[314215382,1708087844891,-338.55106644,0.00044678,30]
[314215383,1708087844900,-168.1601945,0.00044678,30]
[314215384,1708087844909,-173.24126848,0.00044678,30]
[314215385,1708087844919,-211.04827957,0.00044697,30]
[314215386,1708087845135,-12894.36166187,0.000447,120]
[314215387,1708087845147,-480.57230896,0.0004475,30]
[314215388,1708087845157,-28462.92959566,0.00044759,6]
[314215389,1708087845167,-1177.623976,0.0004476,20]
[314215390,1708087845176,-1451.11837641,0.00044766,2]
[314215391,1708087845186,-1000.0,0.0004478,20]
[314215392,1708087845196,-151.021624,0.00044798,34]
[314215393,1708087845205,-604.18,0.000448,7]
[314215394,1708087845214,-1000.0,0.000448,20]
[314215395,1708087845224,-1426.9,0.000448,7]
[314215397,1708087845233,-1000.0,0.000448,14]
[314215398,1708087845242,-1000.0,0.0004482,20]
[314215399,1708087845252,-3566.0,0.00044835,120]
[314215400,1708087845261,-1000.0,0.0004484,20]
[314215401,1708087845271,-1000.0,0.0004486,20]
[314215402,1708087845281,-227.97673828,0.00044874,30]
[314215403,1708087845291,-1855.8938834,0.00044874,30]
[314215406,1708087845300,-1136.65497567,0.00044874,30]
[314215408,1708087845309,-1000.0,0.0004488,20]
[314215409,1708087845321,-153.2802349,0.0004489,10]
[314215410,1708087845331,-1282.6990403,0.0004489,2]
[314215411,1708087845340,-1787.98241732,0.00044897,2]
[314215412,1708087845350,-246.69985955,0.000449,3]
[314215413,1708087845359,-2520.43441833,0.000449,30]
[314215414,1708087845369,-309.7785644,0.000449,4]
[314215415,1708087845379,-327420.0,0.000449,30]
[314215416,1708087845388,-777.0,0.000449,30]
[314215417,1708087845398,-154.516623,0.000449,14]
[314215418,1708087845407,-151.0,0.000449,14]
[314215419,1708087845417,-153.312168,0.000449,5]
[314215420,1708087845427,-151.0,0.000449,14]
[314215421,1708087845436,-604.18,0.000449,7]
[314215422,1708087845446,-1005.36,0.000449,7]
[314215423,1708087845455,-1000.0,0.000449,20]
[314215424,1708087845465,-90000.0,0.000449,30]
[314215425,1708087845474,-721.00261203,0.00044906,30]
[314215426,1708087845483,-182.10317342,0.00044906,30]
[314215427,1708087845493,-666.0,0.00044911,4]
[314215428,1708087845503,-1914.96586311,0.00044914,30]
[314215429,1708087845512,-1000.0,0.00044914,30]
[314215430,1708087845521,-404.81947781,0.00044914,30]
[314215431,1708087845531,-202.4097389,0.00044914,30]
[314215432,1708087845540,-1000.0,0.0004492,20]
[314215433,1708087845550,-1148.67,0.00044931,30]
[314215434,1708087845560,-3495.8,0.00044931,105]
[314215435,1708087845570,-750.96,0.00044931,30]
[314215436,1708087845580,-661.97,0.00044931,30]
[314215437,1708087845590,-800.95,0.00044931,30]
[314215438,1708087845599,-500.0,0.00044931,30]
[314215439,1708087845608,-1000.0,0.0004494,20]
[314215440,1708087845618,-165.0,0.00044952,2]
[314215441,1708087845627,-1000.0,0.0004496,20]
[314215442,1708087845637,-448.0,0.00044966,2]
[314215443,1708087845646,-594.8832813,0.00044969,2]
[314215444,1708087845656,-489.9038787,0.00044969,2]
[314215445,1708087845665,-1352.3628808,0.00044969,2]
[314215446,1708087845675,-1114.9412453,0.00044969,2]
[314215447,1708087845684,-877.5196098,0.00044969,2]
[314215448,1708087845694,-1451.11837643,0.00044976,2]
[314215449,1708087845704,-5137.33125737,0.0004498,2]
[314215450,1708087845714,-1000.0,0.0004498,20]
[314215451,1708087845724,-5000.0,0.00044986,4]
[314215452,1708087845733,-5000.0,0.00044986,4]
[314215453,1708087845743,-200.0,0.00044987,40]
[314215454,1708087845753,-200.0,0.00044987,43]
[314215455,1708087845762,-200.0,0.00044987,46]
[314215456,1708087845771,-200.0,0.0004499,7]
[314215457,1708087845781,-200.0,0.0004499,7]
[314215458,1708087845790,-789.0,0.0004499,3]
[314215459,1708087845799,-414.0,0.0004499,3]
[314215460,1708087845809,-5363.94725196,0.00044997,2]
[314215461,1708087845818,-150.0,0.00044999,4]
[314215462,1708087845828,-150.0,0.00044999,4]
[314215463,1708087845838,-150.0,0.00044999,4]
[314215464,1708087845847,-150.0,0.00044999,4]
[314215465,1708087845856,-100000.0,0.00045,35]
[314215466,1708087845866,-172.53262669,0.00045,4]
[314215467,1708087845875,-8065.43331786,0.00045,30]
[314215468,1708087845884,-953.68527021,0.00045,30]
[314215469,1708087845894,-52096.39385772,0.00045,2]
[314215470,1708087845903,-451.37532774,0.00045,30]
[314215471,1708087845913,-3856.32126257,0.00045,2]
[314215472,1708087845923,-500.0,0.00045,7]
[314215473,1708087845932,-57773.61853543,0.00045,30]
[314215474,1708087845941,-152.1,0.00045,10]
[314215475,1708087845952,-307.85596269,0.00045,14]
[314215476,1708087845961,-34095.5070425,0.00045,30]
[314215477,1708087845971,-154.86743731,0.00045,20]
[314215478,1708087845981,-156.339527,0.00045,30]
[314215479,1708087845990,-217.60776853,0.00045,10]
[314215480,1708087845999,-6207.37579285,0.00045,2]
[314215481,1708087846008,-987.2000924,0.00045,5]
[314215482,1708087846018,-10349.99999901,0.00045,120]
[314215483,1708087846028,-877.60148281,0.00045,45]
[314215484,1708087846037,-300.0,0.00045,45]
[314215485,1708087846047,-170.9,0.00045,7]
[314215486,1708087846056,-2115.66576636,0.00045,7]
[314215487,1708087846066,-200.0,0.00045,30]
[314215488,1708087846075,-100000.0,0.00045,30]
[314215489,1708087846085,-1148.12202119,0.00045,30]
[314215490,1708087846093,-500.0,0.00045,7]
[314215491,1708087846103,-500.0,0.00045,7]
[314215492,1708087846112,-16000.0,0.00045,15]
[314215493,1708087846121,-500.0,0.00045,10]
[314215494,1708087846130,-25000.0,0.00045,120]
[314215495,1708087846140,-3920.96661264,0.00045,2]
[314215496,1708087846149,-500.0,0.00045,7]
[314215497,1708087846159,-500.0,0.00045,4]
[314215498,1708087846169,-500.0,0.00045,4]
[314215499,1708087846179,-1589.8409064,0.00045,30]
[314215500,1708087846188,-1116.24,0.00045,2]
[314215501,1708087846198,-1136.8446523,0.00045,30]
[314215502,1708087846207,-381.02098457,0.00045,7]
[314215503,1708087846216,-4831.75215347,0.00045,17]
[314215504,1708087846226,-500000.0,0.00045,120]
[314215505,1708087846236,-1000.0,0.00045,45]
[314215506,1708087846246,-150.0,0.00045,30]
[314215507,1708087846256,-1000.0,0.00045,45]
[314215508,1708087846265,-1000.0,0.00045,45]
[314215509,1708087846275,-1000.0,0.00045,45]
[314215510,1708087846284,-1000.0,0.00045,45]
[314215511,1708087846294,-1000.0,0.00045,45]
[314215512,1708087846303,-547660.49989093,0.00045,10]
[314215513,1708087846326,-190311.8401516,0.00045,10]
[314215514,1708087846337,-195556.29624589,0.00045,10]
[314215515,1708087846355,-159.0,0.00043,90]
[314215516,1708087846364,-385.38170658,0.00045,10]
[314215517,1708087846376,-104907.82669586,0.00045,10]
[314215518,1708087846399,-193.54979158,0.000427,2]
[314215519,1708087846409,-52089.45020842,0.00045,10]
[314215520,1708087846564,-8408.58518813,0.00045,10]
[314215521,1708087846577,-34390.12351534,0.00045,10]
[314215522,1708087846590,-134732.15065482,0.00045,10]
[314215523,1708087846618,-150.61036007,0.000409,2]
[314215524,1708087846628,-997.02037993,0.00045,10]
[314215525,1708087846640,-253.52,0.00045,10]
[314215526,1708087846651,-709.69063793,0.00045,10]
[314215527,1708087846662,-104388.59219287,0.00045,10]
[314215528,1708087846676,-28643.38675565,0.00045,10]
[314215529,1708087846687,-6195.55632952,0.00045,10]
[314215530,1708087846832,-303026.00162604,0.00045,10]
[314215531,1708087846841,-10704.62551495,0.00045,30]
[314215532,1708087846850,-2154.95980905,0.00045,2]
[314215533,1708087846859,-1507.21,0.00045,14]
[314215534,1708087846866,-500.0,0.00045,7]
[314215535,1708087846872,-6489.61806503,0.00045,2]
[314215536,1708087846879,-2020.17075865,0.00045,10]
[314215537,1708087846886,-1107.0,0.00045,5]
[314215538,1708087846894,-10000.0,0.00045,90]
[314215539,1708087846901,-100000.0,0.00045,3]
[314215540,1708087846907,-151.0,0.00045,14]
[314215541,1708087846914,-151.0,0.00045,14]
[314215542,1708087846921,-151.0,0.00045,14]
[314215543,1708087846930,-151.0,0.00045,14]
[314215544,1708087846940,-1005.36,0.00045,7]
[314215545,1708087846950,-151.0,0.00045,14]
[314215546,1708087846959,-151.0,0.00045,14]
[314215547,1708087846968,-1408.37,0.00045,7]
[314215548,1708087846977,-151.0,0.00045,14]
[314215549,1708087846986,-151.0,0.00045,7]
[314215550,1708087846995,-151.0,0.00045,7]
[314215551,1708087847004,-200.0,0.00045,21]
[314215552,1708087847014,-1750.078519,0.00045,17]
[314215553,1708087847023,-151.0,0.00045,14]
[314215554,1708087847032,-155.648598,0.00045,14]
[314215555,1708087847042,-46005.85203184,0.00045,30]
[314215556,1708087847051,-1000.0,0.00045,20]
[314215557,1708087847061,-151.0,0.00045,14]
[314215558,1708087847070,-151.47741082,0.00045052,25]
[314215559,1708087847082,-604.18,0.000451,7]
[314215560,1708087847091,-384.9244761,0.00045109,2]
[314215561,1708087847102,-69615.7681,0.0004514,30]
[314215562,1708087847111,-151.021624,0.00045198,34]
[314215563,1708087847121,-1005.36,0.000452,7]
[314215564,1708087847131,-1408.37,0.000452,7]
[314215565,1708087847140,-1148.67,0.00045205,30]
[314215566,1708087847150,-750.96,0.00045205,30]
[314215567,1708087847160,-661.97,0.00045205,30]
[314215568,1708087847169,-800.95,0.00045205,30]
[314215569,1708087847179,-323.48801732,0.00045205,30]
[314215570,1708087847189,-158.97,0.00045205,2]
[314215571,1708087847198,-822.02,0.00045205,2]
[314215572,1708087847207,-418.88,0.00045205,2]
[314215573,1708087847216,-418.88,0.00045205,2]
[314215574,1708087847226,-418.88,0.00045205,2]
[314215575,1708087847236,-3331.98755488,0.00045213,5]
[314215576,1708087847246,-287.0,0.00045222,2]
[314215577,1708087847256,-2871.0,0.00045236,2]
[314215578,1708087847265,-951.49158361,0.00045389,12]
[314215579,1708087847275,-6705.61040849,0.00045395,20]
[314215580,1708087847284,-150.0,0.00045422,2]
[314215581,1708087847293,-151.0,0.00045429,2]
[314215582,1708087847303,-180.78,0.0004547,2]
[314215583,1708087847313,-1148.67,0.00045479,30]
[314215584,1708087847323,-750.96,0.00045479,30]
[314215585,1708087847333,-661.97,0.00045479,30]
[314215586,1708087847343,-800.95,0.00045479,30]
[314215587,1708087847353,-151.021624,0.00045498,34]
[314215588,1708087847362,-661.9970716,0.000455,13]
[314215589,1708087847372,-356.197976,0.000455,13]
[314215590,1708087847382,-200.0,0.000455,22]
[314215591,1708087847392,-150.0,0.00045598,60]
[314215592,1708087847401,-150.0,0.00045629,60]
[314215593,1708087847410,-1001.29348193,0.00045671,30]
[314215594,1708087847420,-872.0,0.00045734,2]
[314215595,1708087847429,-1148.67,0.00045753,30]
[314215596,1708087847439,-750.96,0.00045753,30]
[314215597,1708087847449,-661.97,0.00045753,30]
[314215598,1708087847458,-800.95,0.00045753,30]
[314215599,1708087847468,-151.47741082,0.00045777,28]
[314215600,1708087847477,-151.021624,0.00045798,34]
[314215601,1708087847487,-21974.19734801,0.00045827,10]
[314215602,1708087847496,-998.41,0.00045828,15]
[314215603,1708087847505,-380.0,0.000459,2]
[314215604,1708087847514,-380.0,0.000459,2]
[314215605,1708087847523,-380.0,0.000459,2]
[314215606,1708087847532,-380.0,0.000459,2]
[314215607,1708087847542,-310.6,0.000459,2]
[314215608,1708087847551,-380.0,0.000459,2]
[314215609,1708087847562,-380.0,0.000459,2]
[314215610,1708087847571,-380.0,0.000459,2]
[314215611,1708087847580,-386.81,0.000459,2]
[314215612,1708087847590,-777.0,0.000459,30]
[314215613,1708087847599,-200.0,0.00045987,50]
[314215614,1708087847608,-200.0,0.00045987,53]
[314215615,1708087847618,-150.0,0.00045999,5]
[314215616,1708087847627,-100000.0,0.00046,36]
[314215617,1708087847636,-307.99233958,0.00046,3]
[314215618,1708087847646,-162.79461503,0.00046,4]
[314215619,1708087847655,-1085.0,0.00046,6]
[314215620,1708087847664,-1000.0,0.00046,5]
[314215621,1708087847674,-810.0,0.00046,2]
[314215622,1708087847683,-300.0,0.00046,46]
[314215623,1708087847693,-10473.0,0.00046,120]
[314215624,1708087847702,-62629.28417714,0.00046,4]
[314215625,1708087847711,-6217.80048792,0.00046,120]
[314215626,1708087847723,-10000.0,0.00046,90]
[314215627,1708087847732,-1000.0,0.00046,2]
[314215628,1708087847742,-200.0,0.00046,22]
[314215629,1708087847754,-1148.67,0.00046027,30]
[314215630,1708087847765,-750.96,0.00046027,30]
[314215631,1708087847777,-661.97,0.00046027,30]
[314215632,1708087847787,-800.95,0.00046027,30]
[314215633,1708087847796,-417.43,0.00046027,2]
[314215634,1708087847806,-868.02286732,0.0004606,120]
[314215635,1708087847816,-151.021624,0.00046198,38]
[314215636,1708087847825,-150.0,0.00046279,6]
[314215637,1708087847834,-239.5374391,0.00046295,2]
[314215638,1708087847844,-2800.36253097,0.000463,2]
[314215639,1708087847853,-42475.93203951,0.000463,4]
[314215640,1708087847862,-211.64941952,0.000463,7]
[314215641,1708087847872,-158.13979281,0.000463,120]
[314215642,1708087847882,-1148.67,0.00046301,30]
[314215643,1708087847891,-750.96,0.00046301,30]
[314215644,1708087847910,-661.97,0.00046301,30]
[314215645,1708087847921,-800.95,0.00046301,30]
[314215646,1708087847932,-28462.92959566,0.00046306,8]
[314215647,1708087847943,-150.0,0.00046406,15]
[314215648,1708087847954,-150.0,0.00046431,2]
[314215649,1708087847964,-151.021624,0.00046498,38]
[314215650,1708087847974,-661.9970716,0.000465,15]
[314215651,1708087847985,-200.0,0.000465,23]
[314215652,1708087847995,-151.47741082,0.00046502,31]
[314215653,1708087848005,-154.04,0.00046534,2]
[314215654,1708087848015,-505.451047,0.00046548,30]
[314215655,1708087848026,-411.912568,0.00046548,30]
[314215656,1708087848037,-308.934426,0.00046548,30]
[314215657,1708087848047,-150.0,0.00046559,6]
[314215658,1708087848056,-171.74,0.00046565,2]
[314215659,1708087848066,-3000.0,0.00046575,120]
[314215660,1708087848076,-1148.67,0.00046575,30]
[314215661,1708087848085,-750.96,0.00046575,30]
[314215662,1708087848095,-661.97,0.00046575,30]
[314215663,1708087848104,-800.95,0.00046575,30]
[314215664,1708087848114,-20054.37179302,0.000466,30]
[314215665,1708087848124,-6705.61040849,0.00046647,22]
[314215666,1708087848134,-3331.98755488,0.00046792,5]
[314215667,1708087848143,-151.021624,0.00046798,38]
[314215668,1708087848153,-777.0,0.000468,120]
[314215669,1708087848163,-150.0,0.00046839,6]
[314215670,1708087848172,-1148.67,0.00046849,30]
[314215671,1708087848181,-750.96,0.00046849,30]
[314215672,1708087848191,-661.97,0.00046849,30]
[314215673,1708087848200,-800.95,0.00046849,30]
[314215674,1708087848211,-163.31813341,0.0004688,20]
[314215675,1708087848221,-155.16112371,0.000469,14]
[314215676,1708087848231,-155.16112371,0.000469,14]
[314215677,1708087848241,-155.16112371,0.000469,14]
[314215678,1708087848251,-155.16112371,0.000469,14]
[314215679,1708087848262,-155.16112371,0.000469,14]
[314215680,1708087848271,-155.16112371,0.000469,14]
[314215681,1708087848281,-155.16112371,0.000469,14]
[314215682,1708087848292,-155.16112371,0.000469,14]
[314215683,1708087848302,-155.16112371,0.000469,14]
[314215684,1708087848312,-155.16112371,0.000469,14]
[314215685,1708087848322,-155.16112371,0.000469,14]
[314215686,1708087848332,-155.16112371,0.000469,14]
[314215687,1708087848342,-155.16112371,0.000469,14]
[314215688,1708087848352,-155.16112371,0.000469,14]
[314215689,1708087848362,-155.16112371,0.000469,14]
[314215690,1708087848371,-155.16112371,0.000469,14]
[314215691,1708087848383,-155.16112371,0.000469,14]
[314215692,1708087848392,-155.16,0.000469,14]
[314215693,1708087848402,-162.91248998,0.000469,14]
[314215694,1708087848412,-162.91248998,0.000469,14]
[314215695,1708087848422,-162.91248998,0.000469,14]
[314215696,1708087848435,-162.91248998,0.000469,14]
[314215697,1708087848446,-162.91248998,0.000469,14]
[314215698,1708087848456,-162.91248998,0.000469,14]
[314215699,1708087848466,-162.91,0.000469,14]
[314215700,1708087848475,-150.11245173,0.000469,14]
[314215701,1708087848485,-150.11245173,0.000469,14]
[314215702,1708087848494,-150.11245173,0.000469,14]
[314215703,1708087848504,-150.11245173,0.000469,14]
[314215704,1708087848513,-150.11245173,0.000469,14]
[314215705,1708087848522,-150.11245173,0.000469,14]
[314215706,1708087848532,-150.11245173,0.000469,14]
[314215707,1708087848541,-150.11245173,0.000469,14]
[314215708,1708087848551,-150.11245173,0.000469,14]
[314215709,1708087848561,-150.11245173,0.000469,14]
[314215710,1708087848570,-150.11245173,0.000469,14]
[314215711,1708087848579,-150.11,0.000469,14]
[314215712,1708087848590,-160.01609495,0.000469,14]
[314215713,1708087848599,-160.01609495,0.000469,14]
[314215714,1708087848609,-160.01609495,0.000469,14]
[314215715,1708087848619,-160.01609495,0.000469,14]
[314215716,1708087848628,-160.01609495,0.000469,14]
[314215717,1708087848638,-160.01609495,0.000469,14]
[314215718,1708087848648,-160.01609495,0.000469,14]
[314215719,1708087848658,-160.01609495,0.000469,14]
[314215720,1708087848667,-160.01609495,0.000469,14]
[314215721,1708087848677,-160.01609495,0.000469,14]
[314215722,1708087848687,-160.01609495,0.000469,14]
[314215723,1708087848696,-160.01609495,0.000469,14]
[314215724,1708087848706,-160.01,0.000469,14]
[314215725,1708087848716,-156.55961586,0.000469,14]
[314215726,1708087848726,-156.55961586,0.000469,14]
[314215727,1708087848736,-156.55961586,0.000469,14]
[314215728,1708087848746,-156.55961586,0.000469,14]
[314215729,1708087848756,-156.55961586,0.000469,14]
[314215730,1708087848766,-156.55961586,0.000469,14]
[314215731,1708087848776,-156.55961586,0.000469,14]
[314215732,1708087848785,-156.55961586,0.000469,14]
[314215733,1708087848795,-156.55961586,0.000469,14]
[314215734,1708087848804,-156.55961586,0.000469,14]
[314215735,1708087848815,-156.55961586,0.000469,14]
[314215736,1708087848825,-156.55961586,0.000469,14]
[314215737,1708087848834,-156.55,0.000469,14]
[314215738,1708087848844,-777.0,0.000469,30]
[314215739,1708087848854,-1013.56584483,0.000469,10]
[314215740,1708087848863,-18000.0,0.000469,120]
[314215741,1708087848874,-7000.0,0.00046933,2]
[314215742,1708087848883,-1425.096121,0.0004694,22]
[314215743,1708087848893,-1000.0,0.0004696,22]
[314215744,1708087848903,-1000.0,0.0004698,22]
[314215745,1708087848913,-200.0,0.00046987,55]
[314215746,1708087848922,-200.0,0.00046987,58]
[314215747,1708087848934,-100000.0,0.00047,37]
[314215748,1708087848944,-202.98627499,0.00047,47]
[314215749,1708087848953,-5052.0,0.00047,120]
[314215750,1708087848963,-5000.0,0.00047,120]
[314215751,1708087848975,-3534.52921451,0.00047,30]
[314215752,1708087848985,-2199.87645168,0.00047,120]
[314215753,1708087848995,-157.71691734,0.00047,4]
[314215754,1708087849004,-170.6278142,0.00047,4]
[314215755,1708087849014,-10000.0,0.00047,120]
[314215756,1708087849023,-10000.0,0.00047,120]
[314215757,1708087849032,-10000.0,0.00047,120]
[314215758,1708087849043,-25000.0,0.00047,120]
[314215759,1708087849052,-150.0,0.00047,60]
[314215760,1708087849061,-10000.0,0.00047,90]
[314215761,1708087849071,-151.0,0.00047,14]
[314215762,1708087849082,-1000.0,0.00047,22]
[314215763,1708087849092,-951.49158361,0.00047016,13]
[314215764,1708087849101,-279.9450735,0.00047068,2]
[314215765,1708087849111,-640.0979743,0.00047068,2]
[314215766,1708087849121,-500000.0,0.000471,120]
[314215767,1708087849131,-387717.44081027,0.000471,120]
[314215768,1708087849141,-515.55073,0.00047116,30]
[314215769,1708087849151,-150.0,0.00047119,7]
[314215770,1708087849160,-1148.67,0.00047123,30]
[314215771,1708087849169,-204.185687,0.00047123,120]
[314215772,1708087849179,-750.96,0.00047123,30]
[314215773,1708087849188,-661.97,0.00047123,30]
[314215774,1708087849198,-800.95,0.00047123,30]
[314215775,1708087849207,-207.0,0.00047144,18]
[314215776,1708087849218,-151.021624,0.00047198,38]
[314215777,1708087849228,-153.447072,0.000472,7]
[314215778,1708087849237,-151.47741082,0.00047227,34]
[314215779,1708087849248,-448.0,0.0004723,2]
[314215780,1708087849257,-156.3,0.00047283,2]
[314215781,1708087849267,-1148.83321628,0.00047397,30]
[314215782,1708087849277,-750.96538755,0.00047397,30]
[314215783,1708087849286,-661.9924299,0.00047397,30]
[314215784,1708087849297,-800.98469881,0.00047397,30]
[314215785,1708087849307,-150.0,0.00047399,7]
[314215786,1708087849317,-150.0,0.0004744,2]
[314215787,1708087849326,-151.021624,0.00047498,38]
[314215788,1708087849336,-222.02914228,0.000475,60]
[314215789,1708087849348,-250.0,0.000475,60]
[314215790,1708087849357,-2000.0,0.000475,120]
[314215791,1708087849366,-150.0,0.000475,120]
[314215792,1708087849376,-661.9970716,0.000475,17]
[314215793,1708087849386,-5093.69222677,0.000476,2]
[314215794,1708087849395,-1123.56530184,0.000476,2]
[314215795,1708087849406,-3212.14062283,0.000476,2]
[314215796,1708087849415,-193.54979158,0.000476,2]